{"text_format":"1","workbook":"xlsx","n_sheets":4,"sheets":["INICIO","Evaluación Estudio de Caso","Resultados por contenido","BDD"],"not_rendered":{"charts":0,"images":0,"macros":1,"external_links":0,"defined_names":3,"comments":0,"pivot_tables":0},"unopened":[],"bounds":{"document_bytes":16777216,"sheet_cells":100000,"rows_first":2000,"rows_last":500,"rows_between":2000,"halvings":0,"cell_chars":16384,"cell_head_chars":4096},"cells_cut":0,"cells_raw":0,"read":"whole","date_system":"1900"}

{"sheet":"INICIO","index":0,"n_rows":39,"n_cols":15,"rows_kept":39,"cut":false,"hidden":false,"merged":[[39,4,39,15],[22,4,22,15],[24,9,24,15],[26,6,26,7],[26,12,26,14],[28,8,29,15],[31,7,31,15],[33,7,33,15],[36,7,36,15],[38,7,38,15],[21,3,21,15],[2,3,2,14],[14,3,14,15],[16,3,16,15],[20,3,20,15],[18,3,18,15]]}
[]
[]
[null,null,null,"EVALUACIÓN DEL PROYECTO DE GRADO\nESTUDIO DE CASO"]
[null,null,null,null,null,null,null,"Libro para Excel 2010 construído por Patricio Freire Hidalgo, MBA.",null,null,null,null,null,null,"Versión 0.0"]
[null,null,null,null,null,null,null,null,null,null,null,null,null,null,"2010-06-21"]
[null,null,null,"Estimados integrantes de la Comisión Evaluadora:  "]
[]
[null,null,null,"Consideraciones metodológicas para calificar el Proyecto de Grado"]
[]
[null,null,null,"• Cada criterio se calificará sobre diez (10) puntos, sobre la base del concenso establecido por los miembros."]
[null,null,null,"• En la calificación de cada contenido se deberá utilizar números enteros (sin decimales)."]
[null,null,null,"• Se debe precisar en la sección de \"observaciones\" los detalles y retroalimentación a la calificación del"]
[null,null,null,"criterio."]
[null,null,null,"• La calificación obtenida deberá ser transformada por medio de una regla de tres simple, y se registrará"]
[null,null,null,"sobre diez (/10) puntos."]
[null,null,null,"•  Dado el caso de que no se cumpla con el número establecido de palabras de cada contenido (no esté cerca"]
[null,null,null,"del rango definido), se debe considerar la calidad del trabajo elaborado para asignar una nota mayor o"]
[null,null,null,"menor e incluirlo en la sección \"Observaciones\"."]
[null,null,null,"•  La Comisión puede utilizar herramientas tecnológicas de soporte para evidenciar la honestidad académica."]
[null,null,null,"•  En caso de \"Deshonestidad Académica\", se debe proceder conforme a lo establecido en el RG, artículos:"]
[null,null,null,"223, 224, 225 y 226."]
[null,null,null,"Estas consideraciones deberán adecuarse a las diversas adaptaciones que se han desarrollado."]
[]
[null,null,null,null,"Complete la información requerida"]
[null,null,null,null,"Nombre de la Institución educativa:",null,null,null,null,"Unidad Educativa Saraguro"]
[]
[null,null,null,null,"Código AMIE:",null,"11H01375",null,null,"Fecha de evaluación",null,null,"17 de junio 2024"]
[]
[null,null,null,null,"Título del Proyecto de Grado:"]
[]
[]
[null,null,null,null,"Nombre del Autor:"]
[]
[null,null,null,null,"Nombre docente tutor:"]
[]
[]
[null,null,null,null,"Nombre docente evaluador:"]
[]
[null,null,null,null,"Nombre docente evaluador:"]

{"sheet":"Evaluación Estudio de Caso","index":1,"n_rows":37,"n_cols":15,"rows_kept":37,"cut":false,"hidden":false,"merged":[[31,13,32,13],[17,13,18,13],[19,13,20,13],[17,2,18,2],[17,3,17,4],[17,5,17,6],[17,7,17,8],[17,9,17,10],[19,2,20,2],[19,3,19,4],[19,5,19,6],[19,7,19,8],[19,9,19,10],[27,2,28,2],[27,3,27,4],[27,5,27,6],[27,7,27,8],[27,9,27,10],[29,2,30,2],[29,3,29,4],[29,5,29,6],[29,7,29,8],[25,3,25,4],[25,5,25,6],[9,0,10,0],[11,11,11,12],[19,14,20,14],[17,14,18,14],[13,13,14,13],[13,14,14,14],[15,13,16,13],[15,14,16,14],[17,1,18,1],[17,11,17,12],[11,0,20,0],[11,14,12,14],[9,13,10,13],[9,14,10,14],[11,1,12,1],[11,13,12,13],[13,1,14,1],[13,11,13,12],[11,2,12,2],[11,3,11,4],[11,5,11,6],[11,7,11,8],[11,9,11,10],[13,2,14,2],[33,2,34,2],[33,3,33,4],[33,5,33,6],[33,7,33,8],[33,9,33,10],[35,2,36,2],[35,3,35,4],[35,5,35,6],[35,7,35,8],[35,9,35,10],[25,7,25,8],[25,9,25,10],[19,1,20,1],[19,11,19,12],[31,2,32,2],[31,3,31,4],[31,5,31,6],[31,7,31,8],[31,9,31,10],[31,11,31,12],[21,11,21,12],[23,2,24,2],[23,3,23,4],[23,5,23,6],[23,7,23,8],[23,9,23,10],[25,2,26,2],[13,3,13,4],[13,5,13,6],[13,7,13,8],[13,9,13,10],[1,1,1,11],[2,1,2,11],[3,1,3,11],[8,3,8,9],[9,1,10,1],[15,2,16,2],[15,3,15,4],[15,5,15,6],[15,7,15,8],[15,9,15,10],[15,1,16,1],[15,11,15,12],[29,14,30,14],[21,13,22,13],[23,1,24,1],[25,1,26,1],[23,11,23,12],[23,13,24,13],[25,13,26,13],[27,1,28,1],[27,11,27,12],[27,13,28,13],[21,2,22,2],[21,3,21,4],[21,5,21,6],[21,7,21,8],[21,9,21,10],[29,9,29,10],[21,1,22,1],[1,12,1,13],[2,12,2,13],[4,1,5,11],[8,0,8,1],[29,0,32,0],[31,14,32,14],[33,0,36,0],[33,1,34,1],[35,1,36,1],[33,11,33,12],[33,13,34,13],[35,11,35,12],[35,13,36,13],[35,14,36,14],[33,14,34,14],[31,1,32,1],[21,0,28,0],[21,14,22,14],[23,14,24,14],[25,14,26,14],[27,14,28,14],[29,1,30,1],[29,11,29,12],[29,13,30,13]]}
[]
[{"$f":"INICIO!G27","v":"11H01375"},{"$f":"INICIO!J25","v":"Unidad Educativa Saraguro"},null,null,null,null,null,null,null,null,null,null,{"$f":"INICIO!M27","v":"17 de junio 2024"}]
[null,"Libro para Excel 2010 construído por Patricio Freire Hidalgo, MBA.",null,null,null,null,null,null,null,null,null,null,"Versión 0.0"]
[null,"RÚBRICA DE EVALUACIÓN PARA EL ESTUDIO DE CASO"]
[null,{"$f":"INICIO!I29","v":0}]
[]
[]
[]
["ESTRUCTURA",null,null,"NIVELES DE LOGRO"]
["PARTE","CONTENIDO","CRITERIO DE",null,null,null,null,null,null,null,null,null,null,"VALORACIÓN","OBSERVACIONES"]
[null,null,"EVALUACIÓN","A (10 - 9)",null,"B (8 - 7)",null,"C (6 - 4)",null,"D (3 -1)",null,"E (0)"]
["Primera parte:\nDelimitación del \nEstudio de Caso\n(950 palabras)\n","Introducción \n(200 - 250 \npalabras)","Presenta de forma clara y sintética el estudio de caso realizado.  \nHace énfasis en su pertinencia e importancia.  \nUtiliza la extensión definida.","El estudiante presenta de forma clara y sintética el estudio de caso realizado.  \nHace énfasis en su pertinencia e importancia.  \nUtiliza la extensión definida.",null,"El estudiante presenta de forma clara y sintética el estudio de caso realizado.  \nHace énfasis en su pertinencia o su importancia.  \nNo utiliza la extensión definida.",null,"El estudiante presenta de forma clara y sintética el estudio de caso realizado.  \nNo hace énfasis en pertinencia ni en su importancia.  \nNo utiliza la extensión definida.",null,"El estudiante presenta el estudio de caso realizado.  \nNo hace énfasis en su pertinencia e importancia.  \nNo utiliza la extensión definida.",null,"El estudiante no presenta la Introducción.",null,{"$f":"IF(AND(E13>0,G13=\"\",I13=\"\",K13=\"\",M13=\"\"),E13,IF(AND(E13=\"\",G13>0,I13=\"\",K13=\"\",M13=\"\"),G13,IF(AND(E13=\"\",G13=\"\",I13>0,K13=\"\",M13=\"\"),I13,IF(AND(E13=\"\",G13=\"\",I13=\"\",K13>0,M13=\"\"),K13,IF(AND(E13=\"\",G13=\"\",I13=\"\",K13=\"\",M13=0),M13,\"Ha registrado más de un valor\")))))","v":10}]
[null,null,null,null,10]
[null,"Antecedente \n(200 - 250 \npalabras)","Explica de forma sintética las características del contexto donde surge el caso que será estudiado.  \nSe exponen aspectos naturales y sociales del contexto\nSe evidencia la relación existente entre los aspectos descritos.  \nSe utiliza la extensión definida.","El estudiante explica de forma sintética las características del contexto donde surge el caso que será estudiado.  \nExpone aspectos naturales y sociales del contexto.\nEvidencia la relación existente entre los aspectos descritos.  \nUtiliza la extensión definida.",null,"El estudiante explica de forma sintética las características del contexto donde surge el caso que será estudiado.  \nExpone aspectos naturales y sociales del contexto.\nEvidencia parcialmente la relación existente entre los aspectos descritos.  \nNO utiliza la extensión definida.",null,"El estudiante explica de forma sintética las características del contexto donde surge el caso que será estudiado.  \nNo expone aspectos naturales ni sociales del contexto.\nNo evidencia la relación existente entre los aspectos descritos.  \nNO utiliza la extensión definida.",null,"El estudiante expone algunas características del contexto donde surge el caso que será estudiado.  \nNo expone aspectos naturales ni sociales del contexto.\nNo evidencia la relación existente entre los aspectos descritos.  \nNO utiliza la extensión definida.",null,"El estudiante no presenta el antecedente.",null,{"$f":"IF(AND(E15>0,G15=\"\",I15=\"\",K15=\"\",M15=\"\"),E15,IF(AND(E15=\"\",G15>0,I15=\"\",K15=\"\",M15=\"\"),G15,IF(AND(E15=\"\",G15=\"\",I15>0,K15=\"\",M15=\"\"),I15,IF(AND(E15=\"\",G15=\"\",I15=\"\",K15>0,M15=\"\"),K15,IF(AND(E15=\"\",G15=\"\",I15=\"\",K15=\"\",M15=0),M15,\"Ha registrado más de un valor\")))))","v":10}]
[null,null,null,null,10]
[null,"Definición del problema \n(200 - 250 \npalabras)","Define de forma clara el problema, situación, fenómeno, caso, etc. identificando en el contexto que será estudiado.  \nSe detalla sus características específicas \nSe argumenta la razón por la cual constituye un problema en dicho contexto.\nSe utiliza la extensión definida.","El estudiante define de forma clara el problema, situación, fenómeno, caso, etc. identificando en el contexto que será estudiado.  \nDetalla sus características específicas. \nArgumenta la razón por la cual constituye un problema en dicho contexto.\nUtiliza la extensión definida.",null,"El estudiante define de forma clara el problema, situación, fenómeno, caso, etc. identificando en el contexto que será estudiado.  \nDetalla sus características específicas. \nArgumenta parcialmente la razón por la cual constituye un problema en dicho contexto.\nNo utiliza la extensión definida.",null,"El estudiante define de forma clara el problema, situación, fenómeno, caso, etc. identificando en el contexto que será estudiado.  \nDetalla algunas de sus características específicas. \nNo argumenta la razón por la cual constituye un problema en dicho contexto.\nNo utiliza la extensión definida.",null,"El estudiante define parcialmente el problema, situación, fenómeno, caso, etc. identificando en el contexto que será estudiado.  \nNo detalla algunas de sus características específicas. \nNo argumenta la razón por la cual constituye un problema en dicho contexto.\nNo utiliza la extensión definida.",null,"El estudiante no presenta la definición del problema.",null,{"$f":"IF(AND(E17>0,G17=\"\",I17=\"\",K17=\"\",M17=\"\"),E17,IF(AND(E17=\"\",G17>0,I17=\"\",K17=\"\",M17=\"\"),G17,IF(AND(E17=\"\",G17=\"\",I17>0,K17=\"\",M17=\"\"),I17,IF(AND(E17=\"\",G17=\"\",I17=\"\",K17>0,M17=\"\"),K17,IF(AND(E17=\"\",G17=\"\",I17=\"\",K17=\"\",M17=0),M17,\"Ha registrado más de un valor\")))))","v":10}]
[null,null,null,null,10]
[null,"Justificación del estudio de caso \n(80 - 100 \npalabras)","Argumenta de forma clara la necesidad de estudiar el problema, situación, fenómeno, caso, etc., definido.\nSe presenta la pertinencia del caso de estudio.\nSe expone la importancia del caso de estudio.\nSe utiliza la extensión definida.","El estudiante argumenta de forma clara la necesidad de estudiar el problema, situación, fenómeno, caso, etc., definido..\nPresenta la pertinencia del caso de estudio.\nExpone la importancia del caso de estudio.\nUtiliza la extensión definida.",null,"El estudiante argumenta de forma clara la necesidad de estudiar el problema, situación, fenómeno, caso, etc., definido..\nPresenta la pertinencia del caso de estudio.\nExpone parcialmente la importancia del caso de estudio.\nNo utiliza la extensión definida.",null,"El estudiante argumenta de forma clara la necesidad de estudiar el problema, situación, fenómeno, caso, etc., definido..\nPresenta parcialmente la pertinencia del caso de estudio.\nNo expone la importancia del caso de estudio.\nNo utiliza la extensión definida.",null,"El estudiante argumenta medianamente la necesidad de estudiar el problema, situación, fenómeno, caso, etc., definido.\nNo presenta la pertinencia del caso de estudio.\nNo expone la importancia del caso de estudio.\nNo utiliza la extensión definida.",null,"El estudiante no presenta la Justificación del estudio de caso.",null,{"$f":"IF(AND(E19>0,G19=\"\",I19=\"\",K19=\"\",M19=\"\"),E19,IF(AND(E19=\"\",G19>0,I19=\"\",K19=\"\",M19=\"\"),G19,IF(AND(E19=\"\",G19=\"\",I19>0,K19=\"\",M19=\"\"),I19,IF(AND(E19=\"\",G19=\"\",I19=\"\",K19>0,M19=\"\"),K19,IF(AND(E19=\"\",G19=\"\",I19=\"\",K19=\"\",M19=0),M19,\"Ha registrado más de un valor\")))))","v":10}]
[null,null,null,null,10]
[null,"Objetivos del estudio de caso \n(80 - 100 \npalabras)","Describe de forma clara lo que se pretende lograr  con el estudio de caso.\nEl objetivo planteado es medible y alcanzable.\nEl objetivo explicita qué se realizará  y cómo se realizará.\nSe utiliza la extensión definida","El estudiante describe de forma clara lo que se pretende lograr  con el estudio de caso.\nEl objetivo planteado es medible y alcanzable.\nEl objetivo explicita qué se realizará  y cómo se realizará.\nSe utiliza la extensión definida",null,"El estudiante describe de forma clara lo que se pretende lograr  con el estudio de caso.\nEl objetivo planteado es medible y alcanzable.\nEl objetivo explicita qué se realizará  o cómo se realizará.\nNo utiliza la extensión definida",null,"El estudiante describe de forma clara lo que se pretende lograr  con el estudio de caso.\nEl objetivo planteado es medible o alcanzable.\nEl objetivo no explicita qué se realizará  ni cómo se realizará.\nNo utiliza la extensión definida",null,"El estudiante describe medianamente lo que se pretende lograr  con el estudio de caso.\nEl objetivo planteado no es medible ni alcanzable.\nEl objetivo no explicita qué se realizará  y cómo se realizará.\nNo utiliza la extensión definida",null,"El estudiante no presenta los objetivos del estudio de caso.",null,{"$f":"IF(AND(E21>0,G21=\"\",I21=\"\",K21=\"\",M21=\"\"),E21,IF(AND(E21=\"\",G21>0,I21=\"\",K21=\"\",M21=\"\"),G21,IF(AND(E21=\"\",G21=\"\",I21>0,K21=\"\",M21=\"\"),I21,IF(AND(E21=\"\",G21=\"\",I21=\"\",K21>0,M21=\"\"),K21,IF(AND(E21=\"\",G21=\"\",I21=\"\",K21=\"\",M21=0),M21,\"Ha registrado más de un valor\")))))","v":10}]
[null,null,null,null,10]
["Segunda parte:\nDesarrollo del \nEstudio de Caso\n(2050 palabras)\n","Marco Conceptual (800 - 900 palabras)","Expone de forma clara y precisa todos los conceptos que intervienen en la definición del problema: hace alusión al contexto natural y social, argumentando la relación existente entre ellos y utilizando la extensión definida.","El estudiante expone de forma clara y precisa todos los conceptos que intervienen en la definición del problema: hace alusión al contexto natural y social, argumentando la relación existente entre ellos y utilizando la extensión definida.",null,"El estudiante expone de forma clara y precisa todos los conceptos que intervienen en la definición del problema: hace alusión al contexto natural y social, argumentando medianamente  la relación existente entre ellos.\nNo utiliza la extensión definida.",null,"El estudiante expone de forma clara y precisa todos los conceptos que intervienen en la definición del problema: No hace alusión al contexto natural ni social, no argumenta  la relación existente entre ellos.\nNo utiliza la extensión definida.",null,"El estudiante expone de forma parcial los conceptos que intervienen en la definición del problema: No hace alusión al contexto natural ni social, No argumenta  la relación existente entre ellos.\nNo utiliza la extensión definida.",null,"El estudiante no presenta el marco conceptual.",null,{"$f":"IF(AND(E23>0,G23=\"\",I23=\"\",K23=\"\",M23=\"\"),E23,IF(AND(E23=\"\",G23>0,I23=\"\",K23=\"\",M23=\"\"),G23,IF(AND(E23=\"\",G23=\"\",I23>0,K23=\"\",M23=\"\"),I23,IF(AND(E23=\"\",G23=\"\",I23=\"\",K23>0,M23=\"\"),K23,IF(AND(E23=\"\",G23=\"\",I23=\"\",K23=\"\",M23=0),M23,\"Ha registrado más de un valor\")))))","v":10}]
[null,null,null,null,10]
[null,"Marco Metodológico\n (450 - 500 palabras)","Describe de forma clara y sintética la estrategia por medio de la cual se desarrolla el Estudio de Caso.\nLa estrategia metodológica se corresponde a la naturaleza del Estudio de Caso.\nSe evidencia la utilización de herramientas técnicas y tecnológicas.\nSe utiliza la extensión definida\n","El estudiante describe de forma clara y sintética la estrategia por medio de la cual se desarrolla el Estudio de Caso.\nLa estrategia se corresponde a la naturaleza del Estudio de Caso.\nEvidencia la utilización de herramientas técnicas y tecnológicas.\nUtiliza la extensión definida\n",null,"El estudiante describe de forma clara y sintética la estrategia por medio de la cual se desarrolla el Estudio de Caso.\nLa estrategia se corresponde a la naturaleza del Estudio de Caso.\nEvidencia la utilización de parcial de herramientas técnicas y tecnológicas.\nNo utiliza la extensión definida\n",null,"El estudiante describe de forma clara y sintética la estrategia por medio de la cual se desarrolla el Estudio de Caso.\nLa estrategia no se corresponde a la naturaleza del Estudio de Caso.\nNo evidencia la utilización  parcial de herramientas técnicas y tecnológicas.\nNo utiliza la extensión definida\n",null,"El estudiante describe medianamente la estrategia por medio de la cual se desarrolla el Estudio de Caso.\nLa estrategia no se corresponde a la naturaleza del Estudio de Caso.\nNo evidencia la utilización  de herramientas técnicas y tecnológicas.\nNo utiliza la extensión definida",null,"El estudiante no presenta el marco metodológico.",null,{"$f":"IF(AND(E25>0,G25=\"\",I25=\"\",K25=\"\",M25=\"\"),E25,IF(AND(E25=\"\",G25>0,I25=\"\",K25=\"\",M25=\"\"),G25,IF(AND(E25=\"\",G25=\"\",I25>0,K25=\"\",M25=\"\"),I25,IF(AND(E25=\"\",G25=\"\",I25=\"\",K25>0,M25=\"\"),K25,IF(AND(E25=\"\",G25=\"\",I25=\"\",K25=\"\",M25=0),M25,\"Ha registrado más de un valor\")))))","v":9}]
[null,null,null,null,9]
[null,"Resultados\n (350 - 400 palabras)","Expone de forma clara y precisa los resultados obtenidos en el desarrollo del Estudio de Caso.\nLos resultados están articulados con los conceptos y la estrategia metodológica utilizada.\nLos resultados contribuyen a solucionar un problema específico.\nSe utiliza la extensión definida.\n","El estudiante expone de forma clara y precisa los resultados obtenidos en el desarrollo del Estudio de Caso.\nLos resultados están articulados con los conceptos y la estrategia metodológica utilizada.\nLos resultados contribuyen a solucionar un problema específico.\nSe utiliza la extensión definida.",null,"El estudiante expone de forma clara y precisa los resultados obtenidos en el desarrollo del Estudio de Caso.\nLos resultados están articulados con los conceptos y la estrategia metodológica utilizada.\nLos resultados contribuyen medianamente a solucionar un problema específico.\nNo utiliza la extensión definida.",null,"El estudiante expone de forma clara y precisa los resultados obtenidos en el desarrollo del Estudio de Caso.\nLos resultados están articulados con los conceptos o con la estrategia metodológica utilizada.\nLos resultados no contribuyen a solucionar un problema específico.\nNo utiliza la extensión definida.",null,"El estudiante expone de manera ambigua los resultados obtenidos en el desarrollo del Estudio de Caso.\nLos resultados no están articulados con los conceptos y la estrategia metodológica utilizada.\nLos resultados no contribuyen a solucionar un problema específico.\nNo utiliza la extensión definida.",null,"El estudiante no presenta los resultados obtenidos del Estudio de Caso.",null,{"$f":"IF(AND(E27>0,G27=\"\",I27=\"\",K27=\"\",M27=\"\"),E27,IF(AND(E27=\"\",G27>0,I27=\"\",K27=\"\",M27=\"\"),G27,IF(AND(E27=\"\",G27=\"\",I27>0,K27=\"\",M27=\"\"),I27,IF(AND(E27=\"\",G27=\"\",I27=\"\",K27>0,M27=\"\"),K27,IF(AND(E27=\"\",G27=\"\",I27=\"\",K27=\"\",M27=0),M27,\"Ha registrado más de un valor\")))))","v":10}]
[null,null,null,null,10]
[null,"Análisis de Resultados\n (200 - 250 palabras)","Examina los resultados obtenidos por medio de uno o varios criterios claros.\nSe evidencia una postura crítica por parte del estudiante sobre los resultados presentados.\nSe utiliza la extensión definida","El estudiante examina los resultados obtenidos por medio de uno o varios criterios claros.\nEvidencia una postura crítica por parte del estudiante sobre los resultados presentados.\nUtiliza la extensión definida",null,"El estudiante examina los resultados obtenidos por medio de uno o varios criterios claros.\nEvidencia parcialmente una postura crítica por parte del estudiante sobre los resultados presentados.\nNo utiliza la extensión definida",null,"El estudiante examina los resultados obtenidos por medio de criterios ambiguos.\nNo evidencia una postura  crítica por parte del estudiante sobre los resultados presentados.\nNo utiliza la extensión definida",null,"El estudiante examina los resultados obtenidos sin criterios.\nNo evidencia una postura  crítica por parte del estudiante sobre los resultados presentados.\nNo utiliza la extensión definida",null,"El estudiante no presenta el análisi de resultados.",null,{"$f":"IF(AND(E29>0,G29=\"\",I29=\"\",K29=\"\",M29=\"\"),E29,IF(AND(E29=\"\",G29>0,I29=\"\",K29=\"\",M29=\"\"),G29,IF(AND(E29=\"\",G29=\"\",I29>0,K29=\"\",M29=\"\"),I29,IF(AND(E29=\"\",G29=\"\",I29=\"\",K29>0,M29=\"\"),K29,IF(AND(E29=\"\",G29=\"\",I29=\"\",K29=\"\",M29=0),M29,\"Ha registrado más de un valor\")))))","v":10}]
[null,null,null,null,10]
["Tercera parte: \nConclusiones y Recomendaciones\n(500 palabras)\n","Conclusiones\n (200 - 250 palabras)","Expone conclusiones concretas sobre la base de la evidencia analizada en el estudio de caso.  Están redactadas de forma clara y precisa. \nSe utiliza la extensión definida.","El estudiante expone conclusiones concretas sobre la base de la evidencia analizada en el estudio de caso.  Están redactadas de forma clara y precisa. \nUtiliza la extensión definida.",null,"El estudiante expone conclusiones concretas sobre la base de la evidencia analizada en el estudio de caso.  Están redactadas de forma medianamente clara y precisa. \nNo utiliza la extensión definida.",null,"El estudiante expone conclusiones sin basarse en la evidencia.  \nNo están redactadas de forma clara y precisa (son ambiguas). \nNo utiliza la extensión definida.",null,"El estudiante expone conclusiones contradictorias sin basarse en la evidencia.  \nNo están redactadas de forma clara y precisa (son ambiguas). \nNo utiliza la extensión definida.",null,"El estudiante no presenta las conclusiones del estudio de caso.",null,{"$f":"IF(AND(E31>0,G31=\"\",I31=\"\",K31=\"\",M31=\"\"),E31,IF(AND(E31=\"\",G31>0,I31=\"\",K31=\"\",M31=\"\"),G31,IF(AND(E31=\"\",G31=\"\",I31>0,K31=\"\",M31=\"\"),I31,IF(AND(E31=\"\",G31=\"\",I31=\"\",K31>0,M31=\"\"),K31,IF(AND(E31=\"\",G31=\"\",I31=\"\",K31=\"\",M31=0),M31,\"Ha registrado más de un valor\")))))","v":10}]
[null,null,null,null,10]
[null,"Recomendaciones\n (200 - 250 palabras)","Presenta recomendaciones específicas orientadas a la solución o mejora de una situación particular, sobre la base de los resultados obtenidos  en el estudio de caso.\nEstán redactadas de forma clara y precisa.\nUtiliza la extensión definida ","El estudiante presenta recomendaciones específicas orientadas a la solución o mejora de una situación particular, sobre la base de los resultados obtenidos  en el estudio de caso.\nEstán redactadas de forma clara y precisa.\nUtiliza la extensión definida.",null,"El estudiante presenta recomendaciones específicas orientadas a la solución o mejora de una situación particular, sobre la base de los resultados obtenidos  en el estudio de caso.\nEstán redactadas de forma medianamente  clara.\nNo utiliza la extensión definida ",null,"El estudiante presenta recomendaciones específicas parcialmente orientadas a la solución o mejora de una situación particular, \nNo están redactadas  de forma clara y precisa.\nNo utiliza la extensión definida ",null,"El estudiante presenta recomendaciones que no solucionan ni mejoran una situación particular. \nNo están redactadas  de forma clara y precisa.\nNo utiliza la extensión definida ",null,"El estudiane no presenta las recomendaciones  del estudio de caso.",null,{"$f":"IF(AND(E33>0,G33=\"\",I33=\"\",K33=\"\",M33=\"\"),E33,IF(AND(E33=\"\",G33>0,I33=\"\",K33=\"\",M33=\"\"),G33,IF(AND(E33=\"\",G33=\"\",I33>0,K33=\"\",M33=\"\"),I33,IF(AND(E33=\"\",G33=\"\",I33=\"\",K33>0,M33=\"\"),K33,IF(AND(E33=\"\",G33=\"\",I33=\"\",K33=\"\",M33=0),M33,\"Ha registrado más de un valor\")))))","v":10}]
[null,null,null,null,10]
["Cuarta parte: \nReferencias y Defensa Oral","Referencias \n(N/A)","Enlista las fuentes (libros, artículos científicos, artículos de prensa, sitios web, libros de texto, entre otros) de las cuales el estudiante obtuvo la información utilizada en el estudio de caso.\nSe diferencia los tipos de fuentes.","El estudiante enlista las fuentes (libros, artículos científicos, artículos de prensa, sitios web, libros de texto, entre otros) de las cuales se obtuvo la información utilizada en el estudio de caso.\nDiferencia los tipos de fuentes.",null,"El estudiante enlista las fuentes (libros, artículos científicos, artículos de prensa, sitios web, libros de texto, entre otros) de las cuales se obtuvo la información utilizada en el estudio de caso.\nNo diferencia los tipos de fuentes.",null,"El estudiante enlista la mayoría s fuentes (libros, artículos científicos, artículos de prensa, sitios web, libros de texto, entre otros) de las cuales se obtuvo la información utilizada en el estudio de caso.\nNo diferencia los tipos de fuentes.",null,"El estudiante incluye algunas fuentes de las cuales se obtuvo la información utilizada en el estudio de caso.\nNo diferencia los tipos de fuentes.",null,"El estudiante no presenta las referencia del estudio de caso.",null,{"$f":"IF(AND(E35>0,G35=\"\",I35=\"\",K35=\"\",M35=\"\"),E35,IF(AND(E35=\"\",G35>0,I35=\"\",K35=\"\",M35=\"\"),G35,IF(AND(E35=\"\",G35=\"\",I35>0,K35=\"\",M35=\"\"),I35,IF(AND(E35=\"\",G35=\"\",I35=\"\",K35>0,M35=\"\"),K35,IF(AND(E35=\"\",G35=\"\",I35=\"\",K35=\"\",M35=0),M35,\"Ha registrado más de un valor\")))))","v":10}]
[null,null,null,null,10]
[null,"Defensa Oral","Expone los pasos realizados para el análisis e interpretación de resultados obtenidos en el estudio de Caso."," Incluye logo, nombres escritos correctamente, fecha. Las transiciones son fluidas, los títulos poseen un tamaño correcto están bien escritos,   Utiliza imágenes para adornar el mensaje, poseen buen tamaño en relación del mensaje,  ser elaborada con alguna aplicación tecnológica, poseer mínimo 10 y máximo 15 láminas, que tenga al menos 3 citas de autores, referencias y normas  APA. Excelente presentación y disertación en relación al tema tratado.",null," Faltó logo, nombres escritos correctamente, fecha. . Las transiciones son fluidas, algunas diapositivas no poseen, algunos títulos no poseen un tamaño correcto o no están bien escritos, Algunas diapositivas poseen mucho o poco contenido,  ,  Utiliza imágenes para adornar el mensaje, no ajusta el tamaño adecuadamente,  ser elaborada con alguna aplicación tecnológica, poseer mínimo 10 y máximo 15 láminas, que tenga al menos 3 citas de autores, referenciasy normas APA. Buena presentación y disertación en relación al tema tratado",null," No incluyó nombre del trabajo,  algunos errores en la portada. Algunas transiciones y animaciones no son correctas, Algunos títulos no se pueden leer con facilidad,  diapositivas no poseen contenido adecuado lo que dificulta que se entienda, Usa imágenes pero no posee relación,  ser elaborada con alguna aplicación tecnológica, poseer mínimo 10 y máximo 15 láminas, que tenga al menos 3 citas de autores, referenciasy normas APA. Regular presentación y disertación en relación al tema tratado.",null,"Muchos errores en la portada, nombres mal escritos.Muy pocas transiciones y animaciones, Títulos mal escrito, con tamaños incorrectos o inconsistentes.  poco contenido en la mayoría de las positivas.  Las imágenes que coloca, son muy grandes y no deja ver el mensaje. ser elaborada con alguna aplicación tecnológica, poseer mínimo 10 y máximo 15 láminas, que tenga al menos 3 citas de autores, referenciasy normas APA.  Deficiente presentación y disertación en relación al tema tratado.",null,"No hay portada. Muy Deficiente presentación y disertación en relación al tema. No agregó transiciones. No agregó títulos.El Contenido no se corresponde a lo solicitado. Muy Deficiente presentación y disertación en relación al tema tratado",null,{"$f":"IF(AND(E37>0,G37=\"\",I37=\"\",K37=\"\",M37=\"\"),E37,IF(AND(E37=\"\",G37>0,I37=\"\",K37=\"\",M37=\"\"),G37,IF(AND(E37=\"\",G37=\"\",I37>0,K37=\"\",M37=\"\"),I37,IF(AND(E37=\"\",G37=\"\",I37=\"\",K37>0,M37=\"\"),K37,IF(AND(E37=\"\",G37=\"\",I37=\"\",K37=\"\",M37=0),M37,\"Ha registrado más de un valor\")))))","v":9}]
[null,null,null,null,9]

{"sheet":"Resultados por contenido","index":2,"n_rows":44,"n_cols":5,"rows_kept":44,"cut":false,"hidden":false,"merged":[[24,0,27,0],[1,0,1,5],[3,3,3,4],[8,0,9,5],[33,0,33,2],[26,1,26,3],[27,1,27,3],[27,4,27,5],[26,4,26,5],[20,4,20,5],[25,1,25,3],[21,4,21,5],[22,1,22,3],[28,0,29,0],[30,1,30,3],[30,0,31,0],[9,10,9,14],[31,4,31,5],[30,4,30,5],[31,1,31,3],[25,4,25,5],[24,1,24,3],[24,4,24,5],[28,4,28,5],[29,4,29,5],[29,1,29,3],[28,1,28,3],[23,4,23,5],[23,1,23,3],[12,0,12,5],[21,1,21,3],[17,1,17,3],[22,4,22,5],[19,0,23,0],[6,0,6,5],[7,0,7,5],[18,1,18,3],[19,1,19,3],[19,4,19,5],[15,0,15,5],[20,1,20,3]]}
[]
[{"$f":"INICIO!J25","v":"Unidad Educativa Saraguro"}]
[]
[{"$f":"INICIO!G27","v":"11H01375"},null,null,{"$f":"INICIO!M27","v":"17 de junio 2024"}]
[]
[]
[{"$f":"INICIO!D3","v":"EVALUACIÓN DEL PROYECTO DE GRADO\nESTUDIO DE CASO"}]
[]
[{"$f":"INICIO!I29","v":0}]
[]
[null,"Libro para Excel 2010 construído por Patricio Freire Hidalgo, MBA     Versión 0.0"]
[]
["RESULTADOS POR CONTENIDO"]
[]
[]
[]
[]
[{"$f":"'Evaluación Estudio de Caso'!A10","v":"PARTE"},{"$f":"'Evaluación Estudio de Caso'!B10","v":"CONTENIDO"},null,null,{"$f":"'Evaluación Estudio de Caso'!N10","v":"VALORACIÓN"}]
[]
[{"$f":"'Evaluación Estudio de Caso'!A12","v":"Primera parte:\nDelimitación del \nEstudio de Caso\n(950 palabras)\n"},{"$f":"'Evaluación Estudio de Caso'!B12","v":"Introducción \n(200 - 250 \npalabras)"},null,null,{"$f":"'Evaluación Estudio de Caso'!N12","v":10}]
[null,{"$f":"'Evaluación Estudio de Caso'!B14","v":"Antecedente \n(200 - 250 \npalabras)"},null,null,{"$f":"'Evaluación Estudio de Caso'!N14","v":10}]
[null,{"$f":"'Evaluación Estudio de Caso'!B16","v":"Definición del problema \n(200 - 250 \npalabras)"},null,null,{"$f":"'Evaluación Estudio de Caso'!N16","v":10}]
[null,{"$f":"'Evaluación Estudio de Caso'!B18","v":"Justificación del estudio de caso \n(80 - 100 \npalabras)"},null,null,{"$f":"'Evaluación Estudio de Caso'!N18","v":10}]
[null,{"$f":"'Evaluación Estudio de Caso'!B20","v":"Objetivos del estudio de caso \n(80 - 100 \npalabras)"},null,null,{"$f":"'Evaluación Estudio de Caso'!N20","v":10}]
[{"$f":"'Evaluación Estudio de Caso'!A22","v":"Segunda parte:\nDesarrollo del \nEstudio de Caso\n(2050 palabras)\n"},{"$f":"'Evaluación Estudio de Caso'!B22","v":"Marco Conceptual (800 - 900 palabras)"},null,null,{"$f":"'Evaluación Estudio de Caso'!N22","v":10}]
[null,{"$f":"'Evaluación Estudio de Caso'!B24","v":"Marco Metodológico\n (450 - 500 palabras)"},null,null,{"$f":"'Evaluación Estudio de Caso'!N24","v":9}]
[null,{"$f":"'Evaluación Estudio de Caso'!B26","v":"Resultados\n (350 - 400 palabras)"},null,null,{"$f":"'Evaluación Estudio de Caso'!N26","v":10}]
[null,{"$f":"'Evaluación Estudio de Caso'!B28","v":"Análisis de Resultados\n (200 - 250 palabras)"},null,null,{"$f":"'Evaluación Estudio de Caso'!N28","v":10}]
[{"$f":"'Evaluación Estudio de Caso'!A30","v":"Tercera parte: \nConclusiones y Recomendaciones\n(500 palabras)\n"},{"$f":"'Evaluación Estudio de Caso'!B30","v":"Conclusiones\n (200 - 250 palabras)"},null,null,{"$f":"'Evaluación Estudio de Caso'!N30","v":10}]
[null,{"$f":"'Evaluación Estudio de Caso'!B32","v":"Recomendaciones\n (200 - 250 palabras)"},null,null,{"$f":"'Evaluación Estudio de Caso'!N32","v":10}]
[{"$f":"'Evaluación Estudio de Caso'!A34","v":"Cuarta parte: \nReferencias y Defensa Oral"},{"$f":"'Evaluación Estudio de Caso'!B34","v":"Referencias \n(N/A)"},null,null,{"$f":"'Evaluación Estudio de Caso'!N34","v":10}]
[null,{"$f":"'Evaluación Estudio de Caso'!B36","v":"Defensa Oral"},null,null,{"$f":"'Evaluación Estudio de Caso'!N36","v":9}]
[]
["CALIFICACIÓN PROYECTO DE GRADO:",null,null,null,{"$f":"AVERAGE(E20:E31)*70%+E32*30%","v":9.6416666666666657}]
[]
[]
[]
[]
[]
[null,{"$f":"INICIO!H37","v":0},null,{"$f":"INICIO!H39","v":0}]
[null,"Docente Evaluador",null,"Docente Evaluador"]
[]
[null,null,{"$f":"INICIO!H34","v":0}]
[null,null,"Docente Tutor"]

{"sheet":"BDD","index":3,"n_rows":5,"n_cols":5,"rows_kept":5,"cut":false,"hidden":true,"merged":[]}
[]
["Seleccione","Seleccione","Seleccione","Seleccione","Seleccione"]
[10,8,6,3,0]
[9,7,5,2]
[null,null,4,1]